fUST/lending_fUST_20250602
["ID","MTS","AMOUNT","RATE_DAILY","PERIOD"]
[363803026,1748877044199,-155.1025348,0.00023096,2]
[363803028,1748877044209,-153.0,0.00023096,2]
[363803030,1748877044218,-153.0,0.00023096,2]
[363803032,1748877044231,-153.0,0.00023096,2]
[363803034,1748877044241,-153.0,0.00023096,2]
[363803036,1748877044250,-153.0,0.00023096,2]
[363803038,1748877044261,-906.314336,0.00023129,3]
[363803040,1748877044271,-9780.38677065,0.000232,2]
[363803042,1748877044280,-215.0738,0.00023257,2]
[363803044,1748877044290,-505.86713011,0.00023273,2]
[363803047,1748877044301,-500.0,0.00023273,2]
[363803049,1748877044311,-500.0,0.00023287,7]
[363803051,1748877044322,-324.0,0.00023288,7]
[363803053,1748877044331,-151.0,0.00023289,7]
[363803055,1748877044341,-151.0,0.00023289,7]
[363803057,1748877044352,-18803.2,0.0002329,10]
[363803059,1748877044362,-15669.33,0.0002329,10]
[363803061,1748877044372,-13057.77,0.0002329,10]
[363803063,1748877044382,-87163.73333966,0.000233,3]
[363803075,1748877044487,-817.9200025,0.000233,3]
[363803302,1748877046780,-5000.0,0.00016217,2]
[363803304,1748877046790,-3120.9852083,0.0002329,10]
[363803307,1748877046803,-7760.4947917,0.0002329,10]
[363803309,1748877046813,-31181.31137268,0.000233,3]
[363803311,1748877046825,-1443.0,0.000233,3]
[363803553,1748877082395,343.357856,0.00013699,2]
[363804310,1748877619059,41.46205845,0.00016,2]
[363804311,1748877619088,4958.53794155,0.00016,2]
[363804312,1748877652899,24836.707332,0.0002465,120]
[363804316,1748877740231,796.0,0.00024657,120]
[363804321,1748877849082,180.26449728,6.8e-07,2]
[363804323,1748877950645,8168.0,0.00024657,120]
[363804331,1748878009414,1872.35656117,0.00016,2]
[363804343,1748878121577,2724.081647,0.0002,120]
[363804344,1748878123195,1804.19315416,0.00015,2]
[363804347,1748878149914,180.26449727,6.8e-07,2]
[363804352,1748878189809,336.780266,0.00013699,2]
[363804354,1748878198772,-371.76640356,0.00015839,2]
[363804355,1748878202417,-181.16,0.00015839,2]
[363804356,1748878207798,-249.52869692,0.00015839,2]
[363804361,1748878211393,-182.57529871,0.00015839,2]
[363804362,1748878217068,-270.85279344,0.00015839,2]
[363804363,1748878218515,-196.37580889,0.00015839,2]
[363804364,1748878223844,-231.02883716,0.00015839,2]
[363804365,1748878231726,-342.10279694,0.00015839,2]
[363804427,1748878232413,-804.79,0.00015839,2]
[363804470,1748878232833,-728.02941829,0.00015839,2]
[363804576,1748878238395,-1441.78994609,0.00015839,2]
[363804577,1748878238406,-494.59679535,0.000159,2]
[363804578,1748878238416,-942.40258948,0.00016,2]
[363804579,1748878238426,-209.10320517,0.00016,2]
[363804580,1748878238436,-374.820068,0.00016523,2]
[363804581,1748878238447,-300.0,0.00016818,2]
[363804582,1748878238458,-430.0,0.00016819,2]
[363804583,1748878238468,-486.63,0.00016819,2]
[363804584,1748878238478,-430.0,0.00016819,2]
[363804585,1748878238488,-430.0,0.00016819,2]
[363804586,1748878238498,-430.0,0.00016819,2]
[363804587,1748878238508,-430.0,0.00016819,2]
[363804588,1748878238519,-430.0,0.00016819,2]
[363804589,1748878238530,-430.0,0.00016819,2]
[363804590,1748878238539,-430.0,0.00016819,2]
[363804591,1748878238550,-430.0,0.00016819,2]
[363804592,1748878238560,-430.0,0.00016819,2]
[363804593,1748878238570,-430.0,0.00016819,2]
[363804594,1748878238580,-430.0,0.00016819,2]
[363804595,1748878238590,-430.0,0.00016819,2]
[363804596,1748878238600,-482.3,0.00016819,2]
[363804597,1748878238610,-868.9,0.00016819,2]
[363804598,1748878238623,-430.0,0.0001682,2]
[363804599,1748878238633,-430.0,0.0001682,2]
[363804600,1748878238642,-430.0,0.0001682,2]
[363804601,1748878238654,-430.0,0.0001682,2]
[363804602,1748878238664,-430.0,0.0001682,2]
[363804603,1748878238674,-227.69612072,0.0001682,2]
[363804604,1748878238684,-430.0,0.0001682,2]
[363804605,1748878238694,-430.0,0.0001682,2]
[363804606,1748878238704,-430.0,0.0001682,2]
[363804607,1748878238716,-430.0,0.0001682,2]
[363804608,1748878238726,-430.0,0.0001682,2]
[363804609,1748878238735,-430.0,0.0001682,2]
[363804610,1748878238745,-430.0,0.0001682,2]
[363804611,1748878238755,-430.0,0.0001682,2]
[363804612,1748878238765,-430.0,0.0001682,2]
[363804613,1748878238776,-430.0,0.0001682,2]
[363804614,1748878238786,-430.0,0.0001682,2]
[363804615,1748878238795,-430.0,0.0001682,2]
[363804616,1748878238805,-430.0,0.0001682,2]
[363804617,1748878238815,-430.0,0.0001682,2]
[363804618,1748878238825,-433.98,0.0001682,2]
[363804619,1748878238836,-430.0,0.0001682,2]
[363804620,1748878238847,-430.0,0.0001682,2]
[363804621,1748878238858,-430.0,0.0001682,2]
[363804622,1748878238867,-430.0,0.0001682,2]
[363804623,1748878238878,-14291.53427782,0.000169,2]
[363804624,1748878238888,-430.0,0.00017093,2]
[363804625,1748878238898,-430.0,0.00017093,2]
[363804626,1748878238908,-430.0,0.00017093,2]
[363804627,1748878238919,-430.0,0.00017093,2]
[363804628,1748878238929,-430.0,0.00017093,2]
[363804629,1748878238939,-430.0,0.00017093,2]
[363804630,1748878238950,-430.0,0.00017093,2]
[363804631,1748878238959,-430.0,0.00017093,2]
[363804632,1748878238969,-430.0,0.00017093,2]
[363804633,1748878238980,-430.0,0.00017093,2]
[363804634,1748878238989,-482.3,0.00017093,2]
[363804635,1748878238999,-868.9,0.00017093,2]
[363804636,1748878239009,-430.0,0.00017094,2]
[363804637,1748878239020,-430.0,0.00017094,2]
[363804638,1748878239031,-430.0,0.00017094,2]
[363804639,1748878239040,-430.0,0.00017094,2]
[363804640,1748878239051,-430.0,0.00017094,2]
[363804641,1748878239060,-430.0,0.00017094,2]
[363804642,1748878239070,-430.0,0.00017094,2]
[363804643,1748878239082,-430.0,0.00017094,2]
[363804644,1748878239091,-430.0,0.00017094,2]
[363804645,1748878239101,-430.0,0.00017094,2]
[363804646,1748878239110,-430.0,0.00017094,2]
[363804647,1748878239120,-430.0,0.00017094,2]
[363804648,1748878239130,-433.98,0.00017094,2]
[363804649,1748878239140,-430.0,0.00017094,2]
[363804650,1748878239150,-430.0,0.00017094,2]
[363804651,1748878239159,-430.0,0.00017094,2]
[363804652,1748878239169,-226.86448454,0.00017166,2]
[363804653,1748878239179,-175.20065219,0.00017366,2]
[363804654,1748878239189,-500.0,0.00017366,2]
[363804655,1748878239199,-224.1221896,0.00017366,2]
[363804656,1748878239208,-500.0,0.00017366,2]
[363804657,1748878239218,-500.0,0.00017366,2]
[363804658,1748878239227,-500.0,0.00017366,2]
[363804659,1748878239237,-500.0,0.00017366,2]
[363804660,1748878239246,-326.26335004,0.00017366,2]
[363804661,1748878239256,-500.42539195,0.00017366,2]
[363804662,1748878239266,-500.0,0.00017366,2]
[363804663,1748878239276,-500.0,0.00017366,2]
[363804664,1748878239287,-500.0,0.00017366,2]
[363804665,1748878239299,-500.0,0.00017366,2]
[363804666,1748878239309,-500.0,0.00017366,2]
[363804667,1748878239319,-500.0,0.00017366,2]
[363804668,1748878239328,-500.0,0.00017366,2]
[363804669,1748878239338,-500.0,0.00017366,2]
[363804670,1748878239348,-500.0,0.00017366,2]
[363804671,1748878239357,-500.0,0.00017366,2]
[363804672,1748878239367,-500.0,0.00017366,2]
[363804673,1748878239377,-500.0,0.00017366,2]
[363804674,1748878239387,-500.0,0.00017366,2]
[363804675,1748878239397,-500.0,0.00017366,2]
[363804676,1748878239407,-430.0,0.00017367,2]
[363804677,1748878239417,-430.0,0.00017367,2]
[363804678,1748878239427,-430.0,0.00017367,2]
[363804679,1748878239437,-430.0,0.00017367,2]
[363804680,1748878239447,-430.0,0.00017367,2]
[363804681,1748878239457,-430.0,0.00017367,2]
[363804682,1748878239467,-430.0,0.00017367,2]
[363804683,1748878239477,-430.0,0.00017367,2]
[363804684,1748878239487,-430.0,0.00017367,2]
[363804685,1748878239496,-430.0,0.00017367,2]
[363804686,1748878239506,-868.9,0.00017367,2]
[363804687,1748878239517,-482.3,0.00017367,2]
[363804688,1748878239526,-548.9266666,0.00017368,2]
[363804689,1748878239536,-514.54774497,0.00017368,2]
[363804690,1748878239547,-430.0,0.00017368,2]
[363804691,1748878239557,-430.0,0.00017368,2]
[363804692,1748878239567,-430.0,0.00017368,2]
[363804693,1748878239579,-430.0,0.00017368,2]
[363804694,1748878239589,-430.0,0.00017368,2]
[363804695,1748878239599,-430.0,0.00017368,2]
[363804696,1748878239609,-430.0,0.00017368,2]
[363804697,1748878239618,-430.0,0.00017368,2]
[363804698,1748878239629,-430.0,0.00017368,2]
[363804699,1748878239639,-430.0,0.00017368,2]
[363804700,1748878239649,-433.98,0.00017368,2]
[363804701,1748878239658,-430.0,0.00017368,2]
[363804702,1748878239669,-430.0,0.00017368,2]
[363804703,1748878239679,-430.0,0.00017368,2]
[363804704,1748878239689,-2069.03704925,0.000176,2]
[363804705,1748878239699,-203.50911429,0.00017641,2]
[363804706,1748878239709,-430.0,0.00017641,2]
[363804707,1748878239719,-404.03,0.00017641,2]
[363804708,1748878239729,-430.0,0.00017641,2]
[363804709,1748878239740,-516.1450195,0.00017641,2]
[363804710,1748878239750,-319.92,0.00017641,2]
[363804711,1748878239760,-430.0,0.00017641,2]
[363804712,1748878239770,-430.0,0.00017641,2]
[363804713,1748878239780,-430.0,0.00017641,2]
[363804714,1748878239790,-430.0,0.00017641,2]
[363804715,1748878239800,-868.9,0.00017641,2]
[363804716,1748878239809,-482.3,0.00017641,2]
[363804717,1748878239819,-430.0,0.00017642,2]
[363804718,1748878239828,-66.28334996,0.00017642,2]
[363804719,1748878239842,-311.58,0.00017642,2]
[363804720,1748878239854,-52.13665004,0.00017642,2]
[363804721,1748878239864,-407.77,0.00017642,2]
[363804722,1748878239874,-430.0,0.00017642,2]
[363804723,1748878239883,-430.0,0.00017642,2]
[363804724,1748878239894,-430.0,0.00017642,2]
[363804725,1748878239904,-430.0,0.00017642,2]
[363804726,1748878239913,-214.27,0.00017642,2]
[363804727,1748878239924,-430.0,0.00017642,2]
[363804731,1748878240156,-430.0,0.00017642,2]
[363804732,1748878240168,-433.98,0.00017642,2]
[363804733,1748878240178,-430.0,0.00017642,2]
[363804735,1748878240188,-430.0,0.00017642,2]
[363804736,1748878240198,-430.0,0.00017642,2]
[363804737,1748878240208,-638.62684712,0.00017667,2]
[363804738,1748878240218,-8894.1470728,0.00017786,2]
[363804739,1748878240228,-284.40555495,0.000179,2]
[363804741,1748878240239,-299.42,0.00017915,2]
[363804743,1748878240248,-430.0,0.00017915,2]
[363804744,1748878240258,-430.0,0.00017915,2]
[363804746,1748878240268,-430.0,0.00017915,2]
[363804748,1748878240278,-430.0,0.00017915,2]
[363804750,1748878240290,-430.0,0.00017915,2]
[363804751,1748878240300,-868.9,0.00017915,2]
[363804752,1748878240310,-482.3,0.00017915,2]
[363804753,1748878240321,-430.0,0.00017916,2]
[363804754,1748878240331,-430.0,0.00017916,2]
[363804755,1748878240341,-430.0,0.00017916,2]
[363804756,1748878240351,-430.0,0.00017916,2]
[363804757,1748878240361,-430.0,0.00017916,2]
[363804758,1748878240372,-430.0,0.00017916,2]
[363804759,1748878240384,-430.0,0.00017916,2]
[363804760,1748878240394,-430.0,0.00017916,2]
[363804761,1748878240404,-433.98,0.00017916,2]
[363804762,1748878240414,-295.5885213,0.00017916,2]
[363804765,1748878240431,-134.4114787,0.00017916,2]
[363804767,1748878240441,-430.0,0.00017916,2]
[363804769,1748878240450,-430.0,0.00017916,2]
[363804771,1748878240460,-2293.18639834,0.00018,2]
[363804773,1748878240471,-155.0,0.00018,30]
[363804775,1748878240480,-1865.46604701,0.00018,2]
[363804777,1748878240489,-284.40555472,0.00018107,2]
[363804779,1748878240500,-526.9151188,0.00018189,2]
[363804781,1748878240509,-430.0,0.00018189,2]
[363804783,1748878240520,-547.02157022,0.00018189,2]
[363804785,1748878240529,-430.0,0.00018189,2]
[363804787,1748878240538,-430.0,0.00018189,2]
[363804789,1748878240552,-868.9,0.00018189,2]
[363804791,1748878240562,-482.3,0.00018189,2]
[363804793,1748878240571,-486.14791915,0.0001819,2]
[363804795,1748878240581,-556.38,0.0001819,2]
[363804797,1748878240591,-392.01,0.0001819,2]
[363804799,1748878240601,-430.0,0.0001819,2]
[363804801,1748878240612,-430.0,0.0001819,2]
[363804803,1748878240622,-430.0,0.0001819,2]
[363804805,1748878240633,-430.0,0.0001819,2]
[363804807,1748878240642,-430.0,0.0001819,2]
[363804809,1748878240652,-433.98,0.0001819,2]
[363804811,1748878240662,-112.15033721,0.0001819,2]
[363804815,1748878240691,-317.84966279,0.0001819,2]
[363804817,1748878240701,-430.0,0.0001819,2]
[363804819,1748878240711,-430.0,0.0001819,2]
[363804821,1748878240720,-284.40555472,0.00018314,2]
[363804823,1748878240729,-423.56953423,0.00018321,2]
[363804825,1748878240739,-160.0,0.00018321,2]
[363804827,1748878240748,-312.49999998,0.00018321,2]
[363804829,1748878240757,-160.0,0.00018321,2]
[363804831,1748878240767,-212.83419937,0.00018321,2]
[363804833,1748878240777,-229.39799938,0.00018321,2]
[363804835,1748878240785,-160.0,0.00018322,2]
[363804837,1748878240795,-160.0,0.00018322,2]
[363804839,1748878240804,-160.0,0.00018322,2]
[363804841,1748878240813,-420.0,0.00018372,2]
[363804843,1748878240822,-107.05992226,0.00018463,2]
[363804848,1748878240845,-322.94007774,0.00018463,2]
[363804850,1748878240854,-430.0,0.00018463,2]
[363804852,1748878240863,-430.0,0.00018463,2]
[363804854,1748878240872,-868.9,0.00018463,2]
[363804856,1748878240881,-482.3,0.00018463,2]
[363804858,1748878240890,-564.43,0.00018464,2]
[363804860,1748878240899,-430.0,0.00018464,2]
[363804862,1748878240907,-430.0,0.00018464,2]
[363804864,1748878240916,-430.0,0.00018464,2]
[363804866,1748878240924,-430.0,0.00018464,2]
[363804868,1748878240933,-433.98,0.00018464,2]
[363804870,1748878240943,-430.0,0.00018464,2]
[363804872,1748878240952,-430.0,0.00018464,2]
[363804874,1748878240961,-430.0,0.00018464,2]
[363804876,1748878240971,-284.40555472,0.00018521,2]
[363804878,1748878240979,-284.40555472,0.00018728,2]
[363804880,1748878240987,-430.0,0.00018737,2]
[363804882,1748878240996,-459.64,0.00018737,2]
[363804885,1748878241006,-470.1,0.00018737,2]
[363804886,1748878241016,-868.9,0.00018737,2]
[363804889,1748878241028,-482.3,0.00018737,2]
[363804891,1748878241038,-263.97,0.00018738,2]
[363804893,1748878241047,-430.0,0.00018738,2]
[363804894,1748878241057,-516.81,0.00018738,2]
[363804896,1748878241067,-430.0,0.00018738,2]
[363804899,1748878241077,-433.98,0.00018738,2]
[363804901,1748878241086,-430.0,0.00018738,2]
[363804903,1748878241096,-482.01,0.00018738,2]
[363804905,1748878241106,-430.0,0.00018738,2]
[363804907,1748878241116,-284.40555472,0.00018934,2]
[363804909,1748878241126,-430.0,0.00019011,2]
[363804911,1748878241135,-868.9,0.00019011,2]
[363804913,1748878241145,-482.3,0.00019011,2]
[363804915,1748878241155,-430.0,0.00019012,2]
[363804917,1748878241164,-430.0,0.00019012,2]
[363804919,1748878241174,-433.98,0.00019012,2]
[363804921,1748878241184,-346.36,0.00019012,2]
[363804923,1748878241193,-430.0,0.00019012,2]
[363804925,1748878241203,-284.40555472,0.00019141,2]
[363804927,1748878241212,-195.715201,0.00019178,2]
[363804929,1748878241222,-163.40000023,0.00019265,2]
[363804931,1748878241231,-430.0,0.00019285,2]
[363804933,1748878241241,-868.9,0.00019285,2]
[363804935,1748878241251,-482.3,0.00019285,2]
[363804937,1748878241261,-430.0,0.00019286,2]
[363804939,1748878241271,-430.0,0.00019286,2]
[363804941,1748878241283,-433.98,0.00019286,2]
[363804943,1748878241298,-430.0,0.00019286,2]
[363804945,1748878241308,-284.40555472,0.00019348,2]
[363804947,1748878241318,-333362.41532,0.00019499,2]
[363804950,1748878241329,-500.0,0.00019499,2]
[363804952,1748878241340,-500.0,0.00019499,2]
[363804954,1748878241349,-500.0,0.00019499,2]
[363804956,1748878241358,-500.0,0.00019499,2]
[363804958,1748878241371,-500.0,0.00019499,2]
[363804960,1748878241381,-641.61396709,0.00019499,2]
[363804962,1748878241391,-500.0,0.00019499,2]
[363804964,1748878241401,-500.0,0.00019499,2]
[363804966,1748878241411,-500.0,0.00019499,2]
[363804968,1748878241421,-400.21213889,0.00019499,2]
[363804970,1748878241432,-500.0,0.00019499,2]
[363804972,1748878241442,-4435.96131389,0.000195,3]
[363804974,1748878241451,-341403.39927395,0.000195,2]
[363804976,1748878241461,-284.40555472,0.00019555,2]
[363804978,1748878241471,-430.0,0.00019559,2]
[363804980,1748878241480,-868.9,0.00019559,2]
[363804982,1748878241490,-482.3,0.00019559,2]
[363804984,1748878241500,-430.0,0.0001956,2]
[363804986,1748878241510,-279.41051316,0.0001956,2]
[363804988,1748878241520,-433.98,0.0001956,2]
[363804990,1748878241530,-430.0,0.0001956,2]
[363804992,1748878241540,-568.271,0.00019602,2]
[363804994,1748878241550,-284.40555472,0.00019762,2]
[363804996,1748878241560,-430.0,0.00019833,2]
[363804998,1748878241571,-482.3,0.00019833,2]
[363805001,1748878241581,-868.9,0.00019833,2]
[363805003,1748878241591,-430.0,0.00019834,2]
[363805005,1748878241601,-433.98,0.00019834,2]
[363805007,1748878241610,-430.0,0.00019834,2]
[363805009,1748878241619,-284.40555472,0.00019969,2]
[363805011,1748878241629,-502.08399402,0.0002,2]
[363805013,1748878241639,-184.63997028,0.0002,2]
[363805015,1748878241648,-6301.00081709,0.0002,2]
[363805017,1748878241658,-12740.95340947,0.0002,2]
[363805019,1748878241668,-1182.00265909,0.0002,2]
[363805021,1748878241677,-359.93021262,0.0002,2]
[363805022,1748878241687,-30000.0,0.0002,2]
[363805025,1748878241696,-2682.49583296,0.0002,2]
[363805027,1748878241706,-32994.69496807,0.0002,2]
[363805040,1748878241841,-4.99044608,0.0002,2]
[363805185,1748878243379,-160.0,0.00018319,2]
[363805187,1748878243391,-2495.23845298,0.0002,2]
[363805189,1748878243402,-25293.27764768,0.0002,2]
[363805481,1748878246618,-5000.0,0.00017737,2]
[363805483,1748878246629,-5427.76312842,0.0002,2]
[363805492,1748878246712,-1682.1000002,0.0002,2]
[363805562,1748878688132,16932.10655155,0.0002465,120]
[363805569,1748878823189,5000.0,0.0001552,2]
[363805571,1748878839176,5000.0,0.0001552,2]
[363805572,1748878839766,-277.936368,0.00015719,2]
[363805579,1748879050423,10000.0,0.00024658,120]
[363805580,1748879060827,10000.0,0.00021918,60]
[363805582,1748879075915,10000.0,0.0001552,2]
[363805584,1748879084404,10000.0,0.00024658,120]
[363805588,1748879233199,340.824968,0.00013699,2]
[363805606,1748879420999,-167.347726,0.00015635,2]
[363805607,1748879424081,-432.0,0.00015635,2]
[363805608,1748879426698,-262.40209256,0.00015635,2]
[363805637,1748879432471,-9010.69322404,0.00015635,2]
[363805639,1748879432480,-5000.0,0.00016038,2]
[363805641,1748879432489,-284.0144666,0.000161,2]
[363805643,1748879432499,-187.41980858,0.000162,2]
[363805645,1748879432510,-1200.0,0.00016536,2]
[363805647,1748879432520,-300.0,0.00016537,2]
[363805649,1748879432530,-300.0,0.00016537,2]
[363805651,1748879432542,-300.0,0.00016537,2]
[363805653,1748879432553,-300.0,0.00016537,2]
[363805655,1748879432563,-7300.97495815,0.00016539,2]
[363805657,1748879432574,-430.0,0.00016699,2]
[363805659,1748879432584,-430.0,0.00016699,2]
[363805661,1748879432594,-509.84,0.00016699,2]
[363805663,1748879432606,-430.0,0.00016699,2]
[363805665,1748879432615,-533.18,0.00016699,2]
[363805667,1748879432625,-430.0,0.00016699,2]
[363805669,1748879432635,-430.0,0.00016699,2]
[363805671,1748879432645,-430.0,0.00016699,2]
[363805673,1748879432655,-1065.19,0.00016699,2]
[363805674,1748879432665,-498.59880893,0.00016699,2]
[363805675,1748879432707,-0.81119107,0.00016699,2]
[363805676,1748879432717,-398.54522986,0.00016699,2]
[363805677,1748879432727,-280.50680507,0.00016699,2]
[363805678,1748879432740,-488.94319493,0.00016699,2]
[363805679,1748879432750,-47.87889866,0.00016699,2]
[363805681,1748879432762,-382.12110134,0.00016699,2]
[363805682,1748879432772,-430.0,0.00016699,2]
[363805683,1748879432783,-430.0,0.00016699,2]
[363805684,1748879432794,-430.0,0.00016699,2]
[363805685,1748879432805,-430.0,0.000167,2]
[363805686,1748879432815,-430.0,0.000167,2]
[363805687,1748879432825,-430.0,0.000167,2]
[363805688,1748879432835,-430.0,0.000167,2]
[363805689,1748879432844,-560.99225664,0.000167,2]
[363805690,1748879432855,-430.0,0.000167,2]
[363805691,1748879432865,-430.0,0.000167,2]
[363805692,1748879432874,-430.0,0.000167,2]
[363805693,1748879432885,-522.02060256,0.000167,2]
[363805694,1748879432895,-430.0,0.000167,2]
[363805695,1748879432905,-430.0,0.000167,2]
[363805696,1748879432918,-323.99330728,0.000167,2]
[363805697,1748879432928,-430.0,0.000167,2]
[363805698,1748879432937,-430.0,0.000167,2]
[363805699,1748879432947,-430.0,0.000167,2]
[363805700,1748879432958,-500.0,0.000167,2]
[363805701,1748879432968,-430.0,0.000167,2]
[363805702,1748879432978,-430.0,0.000167,2]
[363805703,1748879432988,-430.0,0.000167,2]
[363805704,1748879432998,-430.0,0.000167,2]
[363805705,1748879433007,-430.0,0.000167,2]
[363805706,1748879433017,-430.0,0.000167,2]
[363805707,1748879433026,-430.0,0.000167,2]
[363805708,1748879433037,-432.68708399,0.000167,2]
[363805709,1748879433048,-430.0,0.000167,2]
[363805710,1748879433058,-430.0,0.000167,2]
[363805711,1748879433069,-430.0,0.000167,2]
[363805712,1748879433079,-430.0,0.000167,2]
[363805713,1748879433090,-430.0,0.000167,2]
[363805714,1748879433099,-430.0,0.000167,2]
[363805715,1748879433110,-430.0,0.000167,2]
[363805716,1748879433120,-430.0,0.000167,2]
[363805717,1748879433130,-430.0,0.000167,2]
[363805718,1748879433140,-430.0,0.000167,2]
[363805719,1748879433150,-430.0,0.000167,2]
[363805720,1748879433159,-430.0,0.000167,2]
[363805721,1748879433169,-430.0,0.000167,2]
[363805722,1748879433179,-336.81026059,0.000167,2]
[363805723,1748879433189,-430.0,0.000167,2]
[363805724,1748879433200,-430.0,0.000167,2]
[363805725,1748879433210,-275.13309956,0.000167,2]
[363805726,1748879433220,-430.0,0.000167,2]
[363805727,1748879433231,-197.06777639,0.000167,2]
[363805728,1748879433241,-377.78596006,0.000167,2]
[363805729,1748879433250,-500.0,0.000167,2]
[363805730,1748879433261,-500.0,0.000167,2]
[363805731,1748879433271,-500.0,0.000167,2]
[363805733,1748879433281,-500.0,0.000167,2]
[363805735,1748879433291,-500.0,0.000167,2]
[363805738,1748879433312,-426.81926375,0.000167,2]
[363805741,1748879433323,-477.08641372,0.000167,2]
[363805743,1748879433333,-500.0,0.000167,2]
[363805744,1748879433343,-500.0,0.000167,2]
[363805745,1748879433352,-500.0,0.000167,2]
[363805746,1748879433362,-500.0,0.000167,2]
[363805747,1748879433372,-400.0425392,0.000167,2]
[363805748,1748879433381,-500.0,0.000167,2]
[363805749,1748879433391,-500.0,0.000167,2]
[363805750,1748879433401,-430.0,0.00016701,2]
[363805751,1748879433412,-430.0,0.00016701,2]
[363805752,1748879433422,-442.57542213,0.00016701,2]
[363805753,1748879433432,-430.0,0.00016701,2]
[363805754,1748879433443,-430.0,0.00016701,2]
[363805755,1748879433453,-430.0,0.00016701,2]
[363805756,1748879433463,-430.0,0.00016701,2]
[363805757,1748879433473,-430.0,0.00016701,2]
[363805758,1748879433483,-430.0,0.00016701,2]
[363805759,1748879433493,-430.0,0.00016701,2]
[363805760,1748879433502,-430.0,0.00016701,2]
[363805761,1748879433511,-430.0,0.00016701,2]
[363805762,1748879433522,-490.0,0.00016701,2]
[363805763,1748879433532,-430.0,0.00016701,2]
[363805764,1748879433542,-336.82939588,0.00016701,2]
[363805765,1748879433552,-430.0,0.00016701,2]
[363805766,1748879433562,-430.0,0.00016701,2]
[363805767,1748879433571,-430.0,0.00016701,2]
[363805768,1748879433580,-430.0,0.00016701,2]
[363805769,1748879433590,-430.0,0.00016701,2]
[363805770,1748879433600,-430.0,0.00016701,2]
[363805771,1748879433609,-430.0,0.00016701,2]
[363805772,1748879433618,-430.0,0.00016701,2]
[363805773,1748879433628,-430.0,0.00016701,2]
[363805774,1748879433638,-430.0,0.00016701,2]
[363805775,1748879433648,-430.0,0.00016701,2]
[363805776,1748879433658,-430.0,0.00016701,2]
[363805777,1748879433668,-430.0,0.00016701,2]
[363805778,1748879433677,-430.0,0.00016701,2]
[363805779,1748879433687,-430.0,0.00016701,2]
[363805780,1748879433695,-430.0,0.00016701,2]
[363805781,1748879433704,-210.96170617,0.00016701,2]
[363805782,1748879433713,-430.0,0.00016701,2]
[363805783,1748879433723,-430.0,0.00016701,2]
[363805784,1748879433731,-430.0,0.00016701,2]
[363805785,1748879433741,-500.0,0.00016701,2]
[363805786,1748879433750,-430.0,0.00016701,2]
[363805787,1748879433759,-430.0,0.00016701,2]
[363805788,1748879433768,-60.73979539,0.00016701,2]
[363805828,1748879438616,-5000.0,0.00016532,2]
[363805830,1748879438625,-430.0,0.00016699,2]